[Event "Titled Tuesday Blitz February 28 Early 2023"]
[White "Domingo Nunez, Ruben"]
[Black "Dilmukhametov, Artur"]
[WhiteFideId "22245570"]
[BlackFideId "24179922"]
[WhiteElo "2404"]
[BlackElo "2199"]
[Result "1-0"]
[Round "01"]
[TimeControl "180+2"]
[Date "2023.02.28"]
[WhiteClock "0:01:02"]
[BlackClock "0:01:48"]

1. e4 {[%clk 0:02:56]}  e6 {[%clk 0:02:59]} 2. Nf3 {[%clk 0:02:56]}  d5 {[%clk 0:02:59]} 3. Nc3 {[%clk 0:02:57]}  c5 {[%clk 0:02:57]} 4. Bb5+ {[%clk 0:02:56]}  Nc6 {[%clk 0:02:56]} 5. exd5 {[%clk 0:02:56]}  exd5 {[%clk 0:02:55]} 6. O-O {[%clk 0:02:57]}  Be7 {[%clk 0:02:54]} 7. d4 {[%clk 0:02:56]}  c4 {[%clk 0:02:53]} 8. Ne5 {[%clk 0:02:53]}  Bd7 {[%clk 0:02:51]} 9. Qf3 {[%clk 0:02:43]}  Nxe5 {[%clk 0:02:50]} 10. dxe5 {[%clk 0:02:42]}  Bxb5 {[%clk 0:02:49]} 11. Nxb5 {[%clk 0:02:43]}  a6 {[%clk 0:02:24]} 12. Nc3 {[%clk 0:02:21]}  Bc5 {[%clk 0:02:24]} 13. Nxd5 {[%clk 0:02:07]}  Ne7 {[%clk 0:02:22]} 14. Rd1 {[%clk 0:02:07]}  Nxd5 {[%clk 0:02:18]} 15. Rxd5 {[%clk 0:02:06]}  Qb6 {[%clk 0:02:17]} 16. Bg5 {[%clk 0:01:20]}  O-O {[%clk 0:02:13]} 17. Rad1 {[%clk 0:01:17]}  Rfe8 {[%clk 0:02:03]} 18. h4 {[%clk 0:01:08]}  Rac8 {[%clk 0:01:56]} 19. Rd7 {[%clk 0:01:03]}  Rc7 {[%clk 0:01:48]} 20. Qxf7+ {[%clk 0:01:02]} 1-0


[Site "https://www.chess.com"]

[Event "Titled Tuesday Blitz February 28 Early 2023"]
[White "Gharamian, Tigran"]
[Black "Crevatin, Leo"]
[WhiteFideId "13301527"]
[BlackFideId "1726307"]
[WhiteElo "2638"]
[BlackElo "2190"]
[Result "0-1"]
[Round "01"]
[TimeControl "180+2"]
[Date "2023.02.28"]
[WhiteClock "0:00:57"]
[BlackClock "0:00:41"]

1. d4 {[%clk 0:02:58]}  Nf6 {[%clk 0:02:58]} 2. c4 {[%clk 0:02:58]}  e6 {[%clk 0:02:56]} 3. Nf3 {[%clk 0:02:58]}  d5 {[%clk 0:02:55]} 4. Nc3 {[%clk 0:02:58]}  Bb4 {[%clk 0:02:53]} 5. e3 {[%clk 0:02:56]}  O-O {[%clk 0:02:52]} 6. Bd2 {[%clk 0:02:56]}  Nbd7 {[%clk 0:02:50]} 7. Bd3 {[%clk 0:02:56]}  dxc4 {[%clk 0:02:47]} 8. Bxc4 {[%clk 0:02:56]}  Bd6 {[%clk 0:02:47]} 9. O-O {[%clk 0:02:51]}  e5 {[%clk 0:02:47]} 10. Nb5 {[%clk 0:02:49]}  e4 {[%clk 0:02:31]} 11. Nxd6 {[%clk 0:02:32]}  cxd6 {[%clk 0:02:32]} 12. Ne1 {[%clk 0:02:26]}  Nb6 {[%clk 0:02:29]} 13. Be2 {[%clk 0:02:23]}  Be6 {[%clk 0:02:23]} 14. f3 {[%clk 0:02:18]}  Nc4 {[%clk 0:02:20]} 15. Bc1 {[%clk 0:02:15]}  Re8 {[%clk 0:02:07]} 16. b3 {[%clk 0:02:14]}  Nb6 {[%clk 0:02:05]} 17. f4 {[%clk 0:02:11]}  Rc8 {[%clk 0:02:03]} 18. Ba3 {[%clk 0:02:09]}  Nbd5 {[%clk 0:01:58]} 19. f5 {[%clk 0:01:59]}  Nxe3 {[%clk 0:01:55]} 20. Qd2 {[%clk 0:01:53]}  Nxf1 {[%clk 0:01:54]} 21. Bxf1 {[%clk 0:01:54]}  Bxf5 {[%clk 0:01:52]} 22. Nc2 {[%clk 0:01:53]}  Nd5 {[%clk 0:01:51]} 23. Ne3 {[%clk 0:01:51]}  Nxe3 {[%clk 0:01:51]} 24. Qxe3 {[%clk 0:01:52]}  d5 {[%clk 0:01:48]} 25. Bb5 {[%clk 0:01:51]}  Re6 {[%clk 0:01:47]} 26. Rf1 {[%clk 0:01:52]}  Bg6 {[%clk 0:01:46]} 27. h3 {[%clk 0:01:42]}  h5 {[%clk 0:01:44]} 28. Rc1 {[%clk 0:01:33]}  Rxc1+ {[%clk 0:01:42]} 29. Bxc1 {[%clk 0:01:32]}  Qa5 {[%clk 0:01:41]} 30. Qe2 {[%clk 0:01:29]}  e3 {[%clk 0:01:34]} 31. Bxe3 {[%clk 0:01:23]}  Qc3 {[%clk 0:01:31]} 32. Bd2 {[%clk 0:01:20]}  Qxd4+ {[%clk 0:01:26]} 33. Qf2 {[%clk 0:01:18]}  Qxf2+ {[%clk 0:01:21]} 34. Kxf2 {[%clk 0:01:19]}  Be4 {[%clk 0:01:20]} 35. Be3 {[%clk 0:01:16]}  a6 {[%clk 0:01:20]} 36. Be2 {[%clk 0:01:15]}  g6 {[%clk 0:01:17]} 37. g3 {[%clk 0:01:15]}  f6 {[%clk 0:01:16]} 38. Bd4 {[%clk 0:01:15]}  Kf7 {[%clk 0:01:15]} 39. h4 {[%clk 0:01:15]}  Rc6 {[%clk 0:01:13]} 40. Ke3 {[%clk 0:01:15]}  Rc2 {[%clk 0:01:12]} 41. a4 {[%clk 0:01:15]}  Ke6 {[%clk 0:01:07]} 42. b4 {[%clk 0:01:15]}  Ra2 {[%clk 0:01:06]} 43. a5 {[%clk 0:01:14]}  Ra4 {[%clk 0:01:00]} 44. Bc5 {[%clk 0:01:13]}  Ra3+ {[%clk 0:00:58]} 45. Kf2 {[%clk 0:01:07]}  Ke5 {[%clk 0:00:51]} 46. Bb6 {[%clk 0:01:06]}  d4 {[%clk 0:00:48]} 47. Bc4 {[%clk 0:01:02]}  Rf3+ {[%clk 0:00:44]} 48. Ke2 {[%clk 0:01:01]}  d3+ {[%clk 0:00:45]} 49. Kd2 {[%clk 0:01:01]}  Kf5 {[%clk 0:00:43]} 50. Bc7 {[%clk 0:00:57]}  Rf2+ {[%clk 0:00:42]} 51. Ke1 {[%clk 0:00:57]}  Rc2 {[%clk 0:00:41]} 0-1


[Site "https://www.chess.com"]

[Event "Titled Tuesday Blitz February 28 Early 2023"]
[White "Manukyan, Sargis A."]
[Black "Klepikov, Nikita"]
[WhiteFideId "13303970"]
[BlackFideId "24145220"]
[WhiteElo "2187"]
[BlackElo "2025"]
[Result "1-0"]
[Round "01"]
[TimeControl "180+2"]
[Date "2023.02.28"]
[WhiteClock "0:01:05"]
[BlackClock "0:00:08"]

1. d4 {[%clk 0:02:56]}  Nf6 {[%clk 0:02:59]} 2. c4 {[%clk 0:02:55]}  d6 {[%clk 0:02:56]} 3. Nc3 {[%clk 0:02:55]}  e5 {[%clk 0:02:56]} 4. dxe5 {[%clk 0:02:53]}  dxe5 {[%clk 0:02:57]} 5. Qxd8+ {[%clk 0:02:53]}  Kxd8 {[%clk 0:02:57]} 6. Bg5 {[%clk 0:02:53]}  Be6 {[%clk 0:02:54]} 7. O-O-O+ {[%clk 0:02:53]}  Nd7 {[%clk 0:02:54]} 8. e3 {[%clk 0:02:52]}  c6 {[%clk 0:02:48]} 9. Nf3 {[%clk 0:02:52]}  Kc7 {[%clk 0:02:47]} 10. Be2 {[%clk 0:02:51]}  Bb4 {[%clk 0:02:46]} 11. Bxf6 {[%clk 0:02:45]}  gxf6 {[%clk 0:02:43]} 12. Ne4 {[%clk 0:02:43]}  Rhg8 {[%clk 0:02:31]} 13. Nh4 {[%clk 0:02:20]}  b5 {[%clk 0:02:01]} 14. cxb5 {[%clk 0:02:15]}  cxb5 {[%clk 0:01:34]} 15. Bxb5 {[%clk 0:02:11]}  Be7 {[%clk 0:01:19]} 16. Ng3 {[%clk 0:01:57]}  Nc5 {[%clk 0:00:58]} 17. Nhf5 {[%clk 0:01:47]}  Bf8 {[%clk 0:00:56]} 18. Kb1 {[%clk 0:01:42]}  Rb8 {[%clk 0:00:54]} 19. Be2 {[%clk 0:01:34]}  Na4 {[%clk 0:00:50]} 20. Rc1+ {[%clk 0:01:31]}  Kd8 {[%clk 0:00:36]} 21. Rhd1+ {[%clk 0:01:29]}  Ke8 {[%clk 0:00:37]} 22. b3 {[%clk 0:01:21]}  Bb4 {[%clk 0:00:14]} 23. bxa4 {[%clk 0:01:05]}  Ba3+ {[%clk 0:00:14]} 24. Bb5+ {[%clk 0:01:06]}  Kf8 {[%clk 0:00:08]} 25. Rc3 {[%clk 0:01:05]} 1-0


[Site "https://www.chess.com"]

[Event "Titled Tuesday Blitz February 28 Early 2023"]
[White "Williams, Simon K"]
[Black "Melikhov, Evgeny V."]
[WhiteFideId "404454"]
[BlackFideId "4122046"]
[WhiteElo "2468"]
[BlackElo "2158"]
[Result "0-1"]
[Round "01"]
[TimeControl "180+2"]
[Date "2023.02.28"]
[WhiteClock "0:00:08"]
[BlackClock "0:00:03"]

1. d4 {[%clk 0:02:59]}  Nf6 {[%clk 0:02:58]} 2. Nc3 {[%clk 0:02:57]}  d5 {[%clk 0:02:58]} 3. Bf4 {[%clk 0:02:54]}  c5 {[%clk 0:02:56]} 4. e4 {[%clk 0:02:51]}  cxd4 {[%clk 0:02:53]} 5. Qxd4 {[%clk 0:02:48]}  Nc6 {[%clk 0:02:53]} 6. Bb5 {[%clk 0:02:47]}  Bd7 {[%clk 0:02:53]} 7. Bxc6 {[%clk 0:02:46]}  Bxc6 {[%clk 0:02:53]} 8. e5 {[%clk 0:02:46]}  Ne4 {[%clk 0:02:53]} 9. e6 {[%clk 0:02:43]}  fxe6 {[%clk 0:02:48]} 10. Nxe4 {[%clk 0:02:37]}  dxe4 {[%clk 0:02:47]} 11. Ne2 {[%clk 0:02:36]}  Qxd4 {[%clk 0:02:20]} 12. Nxd4 {[%clk 0:02:35]}  Kf7 {[%clk 0:02:20]} 13. Nxc6 {[%clk 0:02:31]}  bxc6 {[%clk 0:02:20]} 14. Be5 {[%clk 0:02:30]}  Rd8 {[%clk 0:02:14]} 15. Ke2 {[%clk 0:02:17]}  Rd5 {[%clk 0:02:13]} 16. Bc3 {[%clk 0:02:16]}  e5 {[%clk 0:02:12]} 17. Ke3 {[%clk 0:02:15]}  Ke6 {[%clk 0:02:12]} 18. Kxe4 {[%clk 0:02:14]}  g6 {[%clk 0:02:09]} 19. f4 {[%clk 0:01:53]}  Bg7 {[%clk 0:02:08]} 20. Rae1 {[%clk 0:01:49]}  Rhd8 {[%clk 0:01:44]} 21. Rhf1 {[%clk 0:01:35]}  Bf6 {[%clk 0:01:34]} 22. Kf3 {[%clk 0:01:23]}  h5 {[%clk 0:01:07]} 23. Re4 {[%clk 0:01:15]}  Kf5 {[%clk 0:01:04]} 24. Rfe1 {[%clk 0:01:03]}  exf4 {[%clk 0:01:01]} 25. Rxf4+ {[%clk 0:01:03]}  Kg5 {[%clk 0:01:01]} 26. h4+ {[%clk 0:01:01]}  Kh6 {[%clk 0:01:01]} 27. Bxf6 {[%clk 0:01:01]}  exf6 {[%clk 0:01:01]} 28. Rxf6 {[%clk 0:01:01]}  Rd2 {[%clk 0:00:56]} 29. Re2 {[%clk 0:00:49]}  Rd1 {[%clk 0:00:47]} 30. Rxc6 {[%clk 0:00:37]}  Rf8+ {[%clk 0:00:45]} 31. Kg3 {[%clk 0:00:37]}  Rd4 {[%clk 0:00:43]} 32. Rc7 {[%clk 0:00:21]}  Rg4+ {[%clk 0:00:42]} 33. Kh3 {[%clk 0:00:22]}  Rf1 {[%clk 0:00:38]} 34. g3 {[%clk 0:00:20]}  Rf3 {[%clk 0:00:35]} 35. Rg2 {[%clk 0:00:18]}  Rf1 {[%clk 0:00:24]} 36. Re7 {[%clk 0:00:18]}  Rh1+ {[%clk 0:00:20]} 37. Rh2 {[%clk 0:00:18]}  Rg1 {[%clk 0:00:21]} 38. Re3 {[%clk 0:00:18]}  g5 {[%clk 0:00:13]} 39. hxg5+ {[%clk 0:00:18]}  Rxg5 {[%clk 0:00:13]} 40. b3 {[%clk 0:00:18]}  Rf5 {[%clk 0:00:09]} 41. Rg2 {[%clk 0:00:18]}  Rh1+ {[%clk 0:00:09]} 42. Rh2 {[%clk 0:00:18]}  Rg1 {[%clk 0:00:09]} 43. Ree2 {[%clk 0:00:17]}  Kg5 {[%clk 0:00:09]} 44. Reg2 {[%clk 0:00:18]}  Rgf1 {[%clk 0:00:09]} 45. Re2 {[%clk 0:00:15]}  Rg1 {[%clk 0:00:08]} 46. c4 {[%clk 0:00:15]}  Rf3 {[%clk 0:00:07]} 47. Reg2 {[%clk 0:00:14]}  Rgf1 {[%clk 0:00:07]} 48. c5 {[%clk 0:00:14]}  h4 {[%clk 0:00:05]} 49. c6 {[%clk 0:00:11]}  Rc1 {[%clk 0:00:04]} 50. Rh1 {[%clk 0:00:08]}  Rxh1+ {[%clk 0:00:03]} 51. Rh2 {[%clk 0:00:08]}  Rxg3# {[%clk 0:00:03]} 0-1


[Site "https://www.chess.com"]

[Event "Titled Tuesday Blitz February 28 Early 2023"]
[White "Jiganchine, Roman"]
[Black "Kvaloy, Aksel Bu"]
[WhiteFideId "2603667"]
[BlackFideId "1528815"]
[WhiteElo "2277"]
[BlackElo "2208"]
[Result "0-1"]
[Round "01"]
[TimeControl "180+2"]
[Date "2023.02.28"]
[WhiteClock "0:00:57"]
[BlackClock "0:01:19"]

1. e4 {[%clk 0:02:56]}  e5 {[%clk 0:02:58]} 2. Nf3 {[%clk 0:02:48]}  Nf6 {[%clk 0:02:59]} 3. Nc3 {[%clk 0:02:47]}  Nc6 {[%clk 0:02:59]} 4. Bb5 {[%clk 0:02:46]}  Bb4 {[%clk 0:02:57]} 5. O-O {[%clk 0:02:44]}  O-O {[%clk 0:02:57]} 6. Bxc6 {[%clk 0:02:42]}  Bxc3 {[%clk 0:02:57]} 7. Bxb7 {[%clk 0:02:17]}  Bxb7 {[%clk 0:02:50]} 8. bxc3 {[%clk 0:02:11]}  Nxe4 {[%clk 0:02:50]} 9. Nxe5 {[%clk 0:02:04]}  d6 {[%clk 0:02:48]} 10. Nd3 {[%clk 0:01:59]}  Qg5 {[%clk 0:02:45]} 11. f4 {[%clk 0:01:54]}  Qg6 {[%clk 0:02:41]} 12. Qf3 {[%clk 0:01:49]}  Rab8 {[%clk 0:02:38]} 13. Qh3 {[%clk 0:01:44]}  Rfe8 {[%clk 0:02:22]} 14. a4 {[%clk 0:01:44]}  Nc5 {[%clk 0:02:06]} 15. f5 {[%clk 0:01:26]}  Qf6 {[%clk 0:02:03]} 16. Nxc5 {[%clk 0:01:21]}  dxc5 {[%clk 0:02:04]} 17. Ba3 {[%clk 0:01:20]}  Re2 {[%clk 0:01:56]} 18. Rf2 {[%clk 0:01:18]}  Rbe8 {[%clk 0:01:55]} 19. Bxc5 {[%clk 0:01:10]}  Ba6 {[%clk 0:01:20]} 20. Bd4 {[%clk 0:01:06]}  Re1+ {[%clk 0:01:20]} 21. Rxe1 {[%clk 0:00:56]}  Rxe1+ {[%clk 0:01:18]} 22. Rf1 {[%clk 0:00:57]}  Rxf1# {[%clk 0:01:19]} 0-1


[Site "https://www.chess.com"]

[Event "Titled Tuesday Blitz February 28 Early 2023"]
[White "Arabidze, Meri"]
[Black "Yayloyan, Konstantin"]
[WhiteFideId "13604040"]
[BlackFideId "13307088"]
[WhiteElo "2405"]
[BlackElo "2190"]
[Result "1/2-1/2"]
[Round "01"]
[TimeControl "180+2"]
[Date "2023.02.28"]
[WhiteClock "0:00:03"]
[BlackClock "0:00:21"]

1. d4 {[%clk 0:03:00]}  d6 {[%clk 0:02:58]} 2. Nf3 {[%clk 0:03:00]}  g6 {[%clk 0:02:58]} 3. g3 {[%clk 0:03:01]}  Bg7 {[%clk 0:02:59]} 4. Bg2 {[%clk 0:03:02]}  Nd7 {[%clk 0:02:59]} 5. O-O {[%clk 0:03:03]}  e5 {[%clk 0:03:00]} 6. Re1 {[%clk 0:03:02]}  Ngf6 {[%clk 0:03:01]} 7. e4 {[%clk 0:03:00]}  O-O {[%clk 0:03:01]} 8. Nc3 {[%clk 0:03:00]}  c6 {[%clk 0:02:59]} 9. h3 {[%clk 0:02:59]}  Qc7 {[%clk 0:02:54]} 10. a4 {[%clk 0:02:58]}  b6 {[%clk 0:02:53]} 11. Be3 {[%clk 0:02:58]}  Bb7 {[%clk 0:02:52]} 12. Qd2 {[%clk 0:02:53]}  a6 {[%clk 0:02:52]} 13. Bh6 {[%clk 0:02:42]}  b5 {[%clk 0:02:51]} 14. Bxg7 {[%clk 0:02:35]}  Kxg7 {[%clk 0:02:52]} 15. Nh4 {[%clk 0:02:28]}  exd4 {[%clk 0:02:29]} 16. Qxd4 {[%clk 0:02:28]}  c5 {[%clk 0:02:29]} 17. Qd2 {[%clk 0:02:25]}  b4 {[%clk 0:02:30]} 18. Nd5 {[%clk 0:02:19]}  Bxd5 {[%clk 0:02:28]} 19. exd5 {[%clk 0:02:20]}  Rae8 {[%clk 0:02:18]} 20. c4 {[%clk 0:02:07]}  h6 {[%clk 0:02:02]} 21. b3 {[%clk 0:02:04]}  Rxe1+ {[%clk 0:01:56]} 22. Rxe1 {[%clk 0:02:05]}  Re8 {[%clk 0:01:56]} 23. Rxe8 {[%clk 0:02:01]}  Nxe8 {[%clk 0:01:57]} 24. Qe3 {[%clk 0:01:52]}  Qd8 {[%clk 0:01:45]} 25. f4 {[%clk 0:01:47]}  Nef6 {[%clk 0:01:45]} 26. Nf3 {[%clk 0:01:34]}  Qe8 {[%clk 0:01:44]} 27. Qd2 {[%clk 0:01:08]}  Ne4 {[%clk 0:01:37]} 28. Qe1 {[%clk 0:01:01]}  f5 {[%clk 0:01:32]} 29. g4 {[%clk 0:00:54]}  Ndf6 {[%clk 0:01:31]} 30. gxf5 {[%clk 0:00:49]}  gxf5 {[%clk 0:01:32]} 31. Nh4 {[%clk 0:00:47]}  Qd7 {[%clk 0:01:29]} 32. Kh2 {[%clk 0:00:42]}  a5 {[%clk 0:01:12]} 33. Bxe4 {[%clk 0:00:41]}  Nxe4 {[%clk 0:01:11]} 34. Qg1+ {[%clk 0:00:41]}  Kf8 {[%clk 0:01:04]} 35. Qg6 {[%clk 0:00:40]}  Qf7 {[%clk 0:00:54]} 36. Qxh6+ {[%clk 0:00:32]}  Qg7 {[%clk 0:00:54]} 37. Qxg7+ {[%clk 0:00:25]}  Kxg7 {[%clk 0:00:55]} 38. Nxf5+ {[%clk 0:00:25]}  Kf6 {[%clk 0:00:55]} 39. Ng3 {[%clk 0:00:19]}  Nd2 {[%clk 0:00:54]} 40. f5 {[%clk 0:00:12]}  Nxb3 {[%clk 0:00:44]} 41. Ne4+ {[%clk 0:00:12]}  Kxf5 {[%clk 0:00:44]} 42. Nxd6+ {[%clk 0:00:12]}  Ke5 {[%clk 0:00:45]} 43. Nb7 {[%clk 0:00:11]}  Nd2 {[%clk 0:00:40]} 44. Nxa5 {[%clk 0:00:11]}  b3 {[%clk 0:00:40]} 45. Nxb3 {[%clk 0:00:11]}  Nxb3 {[%clk 0:00:41]} 46. h4 {[%clk 0:00:12]}  Na5 {[%clk 0:00:39]} 47. h5 {[%clk 0:00:12]}  Nxc4 {[%clk 0:00:40]} 48. h6 {[%clk 0:00:12]}  Kf6 {[%clk 0:00:40]} 49. Kg3 {[%clk 0:00:10]}  Kg6 {[%clk 0:00:29]} 50. Kf4 {[%clk 0:00:10]}  Kxh6 {[%clk 0:00:25]} 51. d6 {[%clk 0:00:04]}  Nxd6 {[%clk 0:00:25]} 52. Ke5 {[%clk 0:00:04]}  Nb7 {[%clk 0:00:23]} 53. Kd5 {[%clk 0:00:03]}  Kg6 {[%clk 0:00:22]} 54. a5 {[%clk 0:00:03]}  Nxa5 {[%clk 0:00:21]} 55. Kxc5 {[%clk 0:00:03]} 1/2-1/2


[Site "https://www.chess.com"]

[Event "Titled Tuesday Blitz February 28 Early 2023"]
[White "Al-Tarboush, Ward"]
[Black "Kaufman, Raymond"]
[WhiteFideId "7601450"]
[BlackFideId "2015056"]
[WhiteElo "2267"]
[BlackElo "2321"]
[Result "1-0"]
[Round "01"]
[TimeControl "180+2"]
[Date "2023.02.28"]
[WhiteClock "0:00:36"]
[BlackClock "0:00:38"]

1. e4 {[%clk 0:02:59]}  e5 {[%clk 0:02:58]} 2. Nf3 {[%clk 0:02:59]}  Nc6 {[%clk 0:02:58]} 3. Bb5 {[%clk 0:02:59]}  a6 {[%clk 0:02:58]} 4. Ba4 {[%clk 0:02:59]}  f5 {[%clk 0:02:58]} 5. d4 {[%clk 0:02:52]}  exd4 {[%clk 0:02:57]} 6. e5 {[%clk 0:02:46]}  b5 {[%clk 0:02:49]} 7. Bb3 {[%clk 0:02:45]}  Bb7 {[%clk 0:02:49]} 8. O-O {[%clk 0:02:32]}  Na5 {[%clk 0:02:34]} 9. Bxg8 {[%clk 0:02:13]}  Rxg8 {[%clk 0:02:33]} 10. Nxd4 {[%clk 0:01:47]}  Qe7 {[%clk 0:01:44]} 11. Nxf5 {[%clk 0:01:39]}  Qe6 {[%clk 0:01:40]} 12. Nd4 {[%clk 0:01:37]}  Qd5 {[%clk 0:01:38]} 13. Qg4 {[%clk 0:01:12]}  O-O-O {[%clk 0:01:18]} 14. Nc3 {[%clk 0:01:12]}  Qxe5 {[%clk 0:01:16]} 15. Bg5 {[%clk 0:01:07]}  Re8 {[%clk 0:01:12]} 16. Rad1 {[%clk 0:00:59]}  Bd6 {[%clk 0:01:08]} 17. f4 {[%clk 0:00:51]}  Qe3+ {[%clk 0:01:06]} 18. Kh1 {[%clk 0:00:51]}  h5 {[%clk 0:01:01]} 19. Qh4 {[%clk 0:00:38]}  Rgf8 {[%clk 0:00:38]} 20. Rfe1 {[%clk 0:00:36]} 1-0


[Site "https://www.chess.com"]

[Event "Titled Tuesday Blitz February 28 Early 2023"]
[White "Herbst, Richard"]
[Black "Souleidis, Georgios"]
[WhiteFideId "2041251"]
[BlackFideId "4206827"]
[WhiteElo "2141"]
[BlackElo "2401"]
[Result "1/2-1/2"]
[Round "01"]
[TimeControl "180+2"]
[Date "2023.02.28"]
[WhiteClock "0:00:03"]
[BlackClock "0:00:05"]

1. e4 {[%clk 0:02:58]}  c5 {[%clk 0:02:55]} 2. Nf3 {[%clk 0:02:56]}  e6 {[%clk 0:02:55]} 3. g3 {[%clk 0:02:54]}  Nc6 {[%clk 0:02:53]} 4. Bg2 {[%clk 0:02:54]}  Nf6 {[%clk 0:02:53]} 5. d3 {[%clk 0:02:49]}  d5 {[%clk 0:02:50]} 6. Nbd2 {[%clk 0:02:42]}  Be7 {[%clk 0:02:48]} 7. O-O {[%clk 0:02:41]}  O-O {[%clk 0:02:47]} 8. Re1 {[%clk 0:02:40]}  dxe4 {[%clk 0:02:40]} 9. dxe4 {[%clk 0:02:35]}  Qc7 {[%clk 0:02:30]} 10. Qe2 {[%clk 0:02:33]}  b6 {[%clk 0:02:26]} 11. c3 {[%clk 0:02:09]}  a5 {[%clk 0:02:25]} 12. e5 {[%clk 0:02:09]}  Nd5 {[%clk 0:02:06]} 13. c4 {[%clk 0:02:05]}  Ndb4 {[%clk 0:01:50]} 14. Nf1 {[%clk 0:01:30]}  Rd8 {[%clk 0:01:47]} 15. Bf4 {[%clk 0:01:21]}  Nd3 {[%clk 0:01:43]} 16. Red1 {[%clk 0:01:19]}  Nxf4 {[%clk 0:01:42]} 17. gxf4 {[%clk 0:01:20]}  Bb7 {[%clk 0:01:41]} 18. Ng3 {[%clk 0:01:09]}  g6 {[%clk 0:01:30]} 19. h4 {[%clk 0:01:08]}  Rxd1+ {[%clk 0:01:29]} 20. Rxd1 {[%clk 0:01:08]}  Rd8 {[%clk 0:01:30]} 21. h5 {[%clk 0:01:03]}  Kg7 {[%clk 0:01:18]} 22. Rxd8 {[%clk 0:00:58]}  Qxd8 {[%clk 0:01:17]} 23. hxg6 {[%clk 0:00:49]}  hxg6 {[%clk 0:01:15]} 24. Ne4 {[%clk 0:00:37]}  Nd4 {[%clk 0:01:05]} 25. Qe3 {[%clk 0:00:37]}  Nf5 {[%clk 0:00:59]} 26. Qe2 {[%clk 0:00:33]}  Qa8 {[%clk 0:00:45]} 27. Nfd2 {[%clk 0:00:30]}  Nd4 {[%clk 0:00:43]} 28. Qd3 {[%clk 0:00:30]}  Bc6 {[%clk 0:00:40]} 29. b3 {[%clk 0:00:23]}  a4 {[%clk 0:00:40]} 30. Bh3 {[%clk 0:00:14]}  axb3 {[%clk 0:00:40]} 31. axb3 {[%clk 0:00:14]}  Qa1+ {[%clk 0:00:32]} 32. Kh2 {[%clk 0:00:13]}  Qe1 {[%clk 0:00:31]} 33. Qe3 {[%clk 0:00:07]}  Qd1 {[%clk 0:00:16]} 34. Bg2 {[%clk 0:00:07]}  Bxe4 {[%clk 0:00:13]} 35. Bxe4 {[%clk 0:00:06]}  Qe2 {[%clk 0:00:07]} 36. Bg2 {[%clk 0:00:05]}  Qd1 {[%clk 0:00:06]} 37. Kg3 {[%clk 0:00:04]}  Nc2 {[%clk 0:00:06]} 38. Qd3 {[%clk 0:00:02]}  Nd4 {[%clk 0:00:05]} 39. Qe3 {[%clk 0:00:02]}  Qc2 {[%clk 0:00:05]} 40. Be4 {[%clk 0:00:02]}  Qd1 {[%clk 0:00:05]} 41. Bg2 {[%clk 0:00:03]} 1/2-1/2


[Site "https://www.chess.com"]

[Event "Titled Tuesday Blitz February 28 Early 2023"]
[White "Sai Han Thiha"]
[Black "Levitan, Caleb Levi"]
[WhiteFideId "13012290"]
[BlackFideId "14332620"]
[WhiteElo "1954"]
[BlackElo "1963"]
[Result "0-1"]
[Round "01"]
[TimeControl "180+2"]
[Date "2023.02.28"]
[WhiteClock "0:00:02"]
[BlackClock "0:00:04"]

1. d4 {[%clk 0:03:00]}  Nf6 {[%clk 0:02:58]} 2. c4 {[%clk 0:03:01]}  e6 {[%clk 0:02:58]} 3. Nf3 {[%clk 0:03:00]}  d5 {[%clk 0:02:57]} 4. Nc3 {[%clk 0:02:59]}  Bb4 {[%clk 0:02:57]} 5. Qa4+ {[%clk 0:02:56]}  Nc6 {[%clk 0:02:56]} 6. cxd5 {[%clk 0:02:56]}  exd5 {[%clk 0:02:55]} 7. Bg5 {[%clk 0:02:57]}  h6 {[%clk 0:02:52]} 8. Bxf6 {[%clk 0:02:55]}  Qxf6 {[%clk 0:02:50]} 9. e3 {[%clk 0:02:56]}  O-O {[%clk 0:02:25]} 10. Be2 {[%clk 0:02:56]}  a6 {[%clk 0:02:10]} 11. a3 {[%clk 0:02:56]}  Bxc3+ {[%clk 0:02:06]} 12. bxc3 {[%clk 0:02:57]}  b5 {[%clk 0:02:03]} 13. Qb3 {[%clk 0:02:53]}  Be6 {[%clk 0:02:02]} 14. a4 {[%clk 0:02:30]}  Na5 {[%clk 0:01:18]} 15. Qa2 {[%clk 0:02:30]}  Nc4 {[%clk 0:01:09]} 16. O-O {[%clk 0:01:50]}  c6 {[%clk 0:01:07]} 17. Bxc4 {[%clk 0:01:37]}  bxc4 {[%clk 0:01:06]} 18. a5 {[%clk 0:01:26]}  Rfb8 {[%clk 0:01:03]} 19. Rab1 {[%clk 0:01:18]}  Bf5 {[%clk 0:01:00]} 20. Rb6 {[%clk 0:01:15]}  Qd8 {[%clk 0:00:33]} 21. Rxc6 {[%clk 0:00:50]}  Rb5 {[%clk 0:00:33]} 22. Rc5 {[%clk 0:00:46]}  Rxc5 {[%clk 0:00:24]} 23. dxc5 {[%clk 0:00:45]}  Qc7 {[%clk 0:00:24]} 24. Nd4 {[%clk 0:00:46]}  Bd3 {[%clk 0:00:23]} 25. Re1 {[%clk 0:00:40]}  Qxc5 {[%clk 0:00:23]} 26. Qb2 {[%clk 0:00:35]}  Qxa5 {[%clk 0:00:21]} 27. Ra1 {[%clk 0:00:34]}  Qc7 {[%clk 0:00:19]} 28. g3 {[%clk 0:00:30]}  a5 {[%clk 0:00:19]} 29. Qb5 {[%clk 0:00:29]}  Be4 {[%clk 0:00:16]} 30. f3 {[%clk 0:00:27]}  Bd3 {[%clk 0:00:16]} 31. Qxd5 {[%clk 0:00:26]}  Qe7 {[%clk 0:00:16]} 32. Qxa8+ {[%clk 0:00:26]}  Kh7 {[%clk 0:00:15]} 33. e4 {[%clk 0:00:26]}  Qg5 {[%clk 0:00:12]} 34. Nf5 {[%clk 0:00:14]}  g6 {[%clk 0:00:08]} 35. f4 {[%clk 0:00:13]}  Qf6 {[%clk 0:00:08]} 36. Nd4 {[%clk 0:00:06]}  Qe7 {[%clk 0:00:08]} 37. e5 {[%clk 0:00:04]}  g5 {[%clk 0:00:05]} 38. Qd5 {[%clk 0:00:04]}  gxf4 {[%clk 0:00:05]} 39. gxf4 {[%clk 0:00:05]}  f6 {[%clk 0:00:04]} 40. Kf2 {[%clk 0:00:05]}  fxe5 {[%clk 0:00:04]} 41. Qxe5 {[%clk 0:00:04]}  Qh4+ {[%clk 0:00:05]} 42. Ke3 {[%clk 0:00:01]}  Qh3+ {[%clk 0:00:04]} 43. Nf3 {[%clk 0:00:02]}  Qg2 {[%clk 0:00:03]} 44. Qc7+ {[%clk 0:00:02]}  Kh8 {[%clk 0:00:04]} 0-1


[Site "https://www.chess.com"]